Cogmind - Beta 11 @@@ ROGUE MODE // 2022.03.20 @ 19:13:09 Player: Rentaro Result: Destroyed by S-10 Pest with Light Assault Rifle Performance ------------- Evolutions (1) 500 Regions Visited (2) 400 Robots Destroyed (10) 50 Value Destroyed (69) 69 Prototype IDs (7) 140 Alien Tech Used (0) 0 Bonus (0) 0 TOTAL SCORE: 1159 Bonus ------- None Cogmind --------- Core Integrity 0/400 Matter 255/300 Energy 123/125 System Corruption 0% Temperature Cool (0) Movement Rolling (105) Ox1 Location -9/Materials Parts ------- > --- POWER (1) -------- Light Ion Engine > --- PROPULSION (2) --- Armored Wheel Armored Wheel > --- UTILITY (4) ------ Large Storage Unit Visual Processing Unit Medium Armor Plating Medium Armor Plating > --- WEAPON (2) ------- Light Assault Rifle > --- INVENTORY (15) --- Light Nuclear Core Light Nuclear Core Light Nuclear Core Light Nuclear Core Armored Wheel Large Storage Unit Medium Armor Plating Peak State ------------ > --- POWER ------------ Light Ion Engine > --- PROPULSION ------- Armored Wheel Armored Wheel > --- UTILITY ---------- Large Storage Unit Visual Processing Unit Medium Armor Plating Medium Armor Plating > --- WEAPON ----------- Light Assault Rifle > --- INVENTORY -------- Light Nuclear Core Light Nuclear Core Light Nuclear Core Light Nuclear Core Armored Wheel Large Storage Unit Medium Armor Plating [Rating: 14] Favorites ----------- Power Light Ion Engine Engine Light Ion Engine Propulsion Compact Wheel Wheel Compact Wheel Utility Large Storage Unit Device Seismic Detector Storage Large Storage Unit Processor Visual Processing Unit Protection Light Armor Plating Weapon Assault Rifle Energy Gun EM Pulse Gun Ballistic Gun Assault Rifle Ballistic Cannon Light Cannon Build | -11 -10 -9 ------- Run | Scr Mat Mat Slots Evolved 2 | . . 2 Power . | . . . Propulsion . | . . . Utility 2 | . . 2 Weapon . | . . . Parts Attached 20 | 6 2 12 Power 2 | 1 . 1 Engine 2 | 1 . 1 Core . | . . . Reactor . | . . . Propulsion 6 | 2 . 4 Treads . | . . . Leg . | . . . Wheel 6 | 2 . 4 Hover . | . . . Flight . | . . . Utility 8 | 1 2 5 Device 1 | . 1 . Storage 2 | 1 1 . Processor 1 | . . 1 Hackware . | . . . Protection 4 | . . 4 Artifact . | . . . Weapon 4 | 2 . 2 Energy Gun 1 | 1 . . Energy Cannon . | . . . Ballistic Gun 2 | 1 . 1 Ballistic Cannon 1 | . . 1 Launcher . | . . . Special Weapon . | . . . Impact Weapon . | . . . Slashing Weapon . | . . . Piercing Weapon . | . . . Special Melee Weapon . | . . . Unidentified Prototypes . | . . . Corrupted Parts 1 | . 1 . System Corruption 1 | . 1 . Parts Lost 11 | . . 11 Power 1 | . . 1 Propulsion 4 | . . 4 Utility 3 | . . 3 Weapon 3 | . . 3 Highest Loss Streak 4 | . . 4 To Critical Strikes . | . . . Average Slot Usage (%) 86 | . 96 82 Engine 9 | . 14 8 Wheel 23 | . 28 21 Device 10 | . 10 10 Storage 11 | . 14 11 Processor 7 | . . 10 Protection 5 | . . 7 Energy Gun 7 | . 14 4 Ballistic Gun 9 | . 14 7 Naked Turns . | . . . Heaviest Build 38 | 12 28 38 Greatest Support 28 | 26 26 28 Greatest Overweight (x) 1 | 1 1 1 Average Overweight (x) . | . . . Largest Inventory Capacity 15 | 8 15 15 Average Capacity 12 | 7 14 15 Most Carried 15 | 5 6 15 Average Carried 5 | 3 4 8 Final Capacity 15 | 8 15 15 Final Carried 7 | 4 5 7 Class Distribution -------------------- 100% | Mutant Dominant Class ---------------- Mutant | -10/Materials Mutant | -9/Materials Resources | -11 -10 -9 ----------- Run | Scr Mat Mat Matter Collected 305 | 305 . . Remotely . | . . . Salvage Created 273 | 273 . . Parts 31 | 31 . . Haulers Intercepted . | . . . Recyclers Shooed . | . . . Parts Field Recycled . | . . . Retrieved Matter . | . . . Parts Self-Destructed . | . . . Prevented . | . . . Kills | -11 -10 -9 ------- Run | Scr Mat Mat Combat Hostiles Destroyed . | . . . Classes Destroyed 2 | 2 . . Tunneler 9 | 9 . . Recycler 1 | 1 . . Best Kill Streak 6 | 6 . . Combat Bots Only . | . . . Max Kills in Single Turn 1 | 1 . . Gunslinging . | . . . Exploded . | . . . Melee . | . . . Uniques/NPCs Destroyed . | . . . Combat | -11 -10 -9 -------- Run | Scr Mat Mat Damage Taken 1521 | 40 58 1423 Core 443 | 40 . 403 Absorbed by Shields . | . . . Core Remaining (%) 84 | 84 84 . Volleys Fired 17 | 15 . 2 Largest 2 | 2 . 1 Hottest 60 | 60 . 35 Shots Fired 32 | 30 . 2 Gun 30 | 30 . . Cannon 2 | . . 2 Launcher . | . . . Special . | . . . Kinetic 17 | 15 . 2 Thermal . | . . . Explosive . | . . . Electromagnetic 15 | 15 . . Robot Hit Streak 5 | 5 . . Robot Miss Streak 3 | 3 . . Penetration Max . | . . . Secondary Targets . | . . . Shots Hit Robots 14 | 14 . . Core Hits 13 | 9 . 4 Critical Kills . | . . . Critical Parts Destroyed . | . . . Critical Strikes . | . . . Melee Attacks . | . . . Impact . | . . . Slashing . | . . . Piercing . | . . . Sneak Attacks . | . . . Combat Hostiles . | . . . Follow-up Attacks . | . . . Damage Inflicted 276 | 226 . 50 Guns 182 | 182 . . Cannons . | . . . Explosions 44 | 44 . . Melee . | . . . Ramming 50 | . . 50 Kinetic 36 | 36 . . Thermal 44 | 44 . . Explosive . | . . . Electromagnetic 146 | 146 . . Impact . | . . . Slashing . | . . . Piercing . | . . . Highest Corruption 1 | . 1 . Average Corruption 1 | . 1 . Corruption Purged . | . . . Corruption Blocked . | . . . Effects 1 | . 1 . Data Loss (minor) 1 | . 1 . Overload Shots . | . . . Overflow Damage 14 | 14 . . Projectiles . | . . . Explosions 14 | 14 . . Melee . | . . . Knockbacks . | . . . Impact . | . . . Kinetic . | . . . Secondary . | . . . Self-Inflicted Damage 61 | 40 . 21 Shots 1 | 1 . . Rammed 13 | . . 13 Targets Rammed 13 | . . 13 Kicked . | . . . Crushed . | . . . Highest Temperature 12 | 12 . 8 Average Temperature 9 | 12 . 4 Received Heat Transfer 543 | . 33 510 Siege Activations . | . . . Robots Corrupted . | . . . Combat Hostiles . | . . . Parts Fried . | . . . Impact Corruptions . | . . . Robots Melted . | . . . Combat Hostiles . | . . . Parts Melted . | . . . Heat Transferred 50 | 50 . . Parts Sabotaged . | . . . Parts Stolen . | . . . Parts Stripped . | . . . Power Chain Reactions 1 | 1 . . Missiles Intercepted . | . . . Alert | -11 -10 -9 ------- Run | Scr Mat Mat Peak Influence 185 | 50 47 185 Initial 32 | . 32 19 Average 60 | 25 42 89 Maximum Alert Level . | . . . Low Security (%) 100 | 100 100 100 Level 1 . | . . . Level 2 . | . . . Level 3 . | . . . Level 4 . | . . . Level 5 . | . . . High Security . | . . . Max Security . | . . . Squads Dispatched 2 | . 1 1 Investigation . | . . . Extermination . | . . . Reinforcement 2 | . 1 1 Assault . | . . . Garrison . | . . . Intercept . | . . . Searches Triggered . | . . . Construction Impeded . | . . . Haulers Reinforced . | . . . Active Scanning Responses . | . . . Cargo Convoy Interrupts . | . . . Stealth | -11 -10 -9 --------- Run | Scr Mat Mat Distress Signals 3 | . 1 2 Communications Jammed . | . . . Distress Signals . | . . . Times Spotted 29 | . 4 25 Peak Tracking Total 11 | . 3 11 Tactical Retreats 5 | . . 5 Traps | -11 -10 -9 ------- Run | Scr Mat Mat Traps Triggered . | . . . Indirectly . | . . . Trap Hack Attempts . | . . . Triggered . | . . . Disarmed . | . . . Reprogrammed . | . . . Reused . | . . . Traps Extracted . | . . . Installed . | . . . Triggered . | . . . Machines | -11 -10 -9 ---------- Run | Scr Mat Mat Machines Disabled . | . . . Max in Single Turn . | . . . Machines Sabotaged . | . . . Garrisons Compromised . | . . . Overloaded Fab Kills . | . . . Hacking | -11 -10 -9 --------- Run | Scr Mat Mat Machines Accessed 5 | . . 5 Terminals 5 | . . 5 Fabricators . | . . . Repair Stations . | . . . Recycling Units . | . . . Scanalyzers . | . . . Garrison Access . | . . . Total Hacks 16 | . . 16 Successful 8 | . . 8 Failed 8 | . . 8 Catastrophic 3 | . . 3 Database Lockouts . | . . . Manual 4 | . . 4 Terminals 16 | . . 16 Fabricators . | . . . Repair Stations . | . . . Recycling Units . | . . . Scanalyzers . | . . . Garrison Access . | . . . Terminal Hacks 8 | . . 8 Prototype ID Bank 4 | . . 4 Alert Level 2 | . . 2 Unreport Threat 1 | . . 1 Dispatch Records 1 | . . 1 Fabricator Hacks . | . . . Repair Station Hacks . | . . . Recycling Unit Hacks . | . . . Scanalyzer . | . . . Garrison Access Hacks . | . . . Unauthorized Hacks . | . . . Terminals . | . . . Fabricators . | . . . Repair Stations . | . . . Recycling Units . | . . . Scanalyzers . | . . . Garrison Access . | . . . Data Cores Recovered . | . . . Used . | . . . Hacking Detections 4 | . . 4 Full Trace Events . | . . . Feedback Events . | . . . Feedback Blocked . | . . . Robot Schematics Acquired . | . . . Robots Built . | . . . Authchips . | . . . Time . | . . . Total Robot Build Rating . | . . . Part Schematics Acquired . | . . . Parts Built . | . . . Authchips . | . . . Time . | . . . Total Part Build Rating . | . . . Parts Repaired . | . . . Time . | . . . Parts Recycled . | . . . Recycled Matter . | . . . Retrieved Matter . | . . . Retrieved Components . | . . . Parts Scanalyzed . | . . . Part Schematics Acquired . | . . . Parts Damaged . | . . . Bothacking | -11 -10 -9 ------------ Run | Scr Mat Mat Used RIF Installer . | . . . Robots Hacked . | . . . Non-combat . | . . . Combat . | . . . Robot Hacks Applied . | . . . Relay Couplers Released . | . . . Fabnet Peak Effective % . | . . . Robots Rewired . | . . . Allies Hacked . | . . . Hacks Repelled . | . . . Allies | -11 -10 -9 -------- Run | Scr Mat Mat Total Allies . | . . . Largest Group . | . . . Highest-Rated Group . | . . . Highest-Rated Ally . | . . . Total Orders . | . . . Ally Attacks . | . . . Total Damage . | . . . Kills . | . . . Allies Corrupted . | . . . Allies Melted . | . . . Intel | -11 -10 -9 ------- Run | Scr Mat Mat Robot Analysis Total . | . . . Derelict Logs Recovered . | . . . Drone Launches . | . . . Drone Recoveries . | . . . Exploration | -11 -10 -9 ------------- Run | Scr Mat Mat Turns Passed 858 | 282 151 425 Spaces Moved 624 | 123 138 363 Core 23 | 23 . . Treads . | . . . Legs . | . . . Wheels 601 | 100 138 363 Hover . | . . . Flight . | . . . Fastest Speed 50 | 50 90 85 Average Speed 98 | 84 104 101 Slowest Speed 110 | 100 105 110 Overloaded Moves . | . . . Propulsion Burnouts . | . . . Robots Hopped . | . . . Cave-ins Triggered . | . . . Exploration Rate (%) 25 | 6 22 47 Regions Visited 2 Branch Regions . Pre-discovered Areas . | . . . Known Exits Taken . | . . . Unknown Exits Taken 2 | 1 1 . Scrap Searched . | . . . Spaces Dug . | . . . Terrain Destroyed 5 | 5 . . Melee . | . . . Projectile . | . . . AOE 5 | 5 . . Terrain Rammed . | . . . Walls Destroyed . | . . . Machines Disabled . | . . . Actions | -11 -10 -9 --------- Run | Scr Mat Mat Total 833 | 269 145 419 Wait 133 | 118 . 15 Move 622 | 122 137 363 Hop . | . . . Pick Up 26 | 8 4 14 Fast Attach 2 | 2 . . Attach 17 | 4 1 12 Detach . | . . . Swap 1 | . 1 . Drop 2 | . 2 . Fire 17 | 15 . 2 Melee . | . . . Ram 13 | . . 13 Kick . | . . . Crush . | . . . Escape Stasis . | . . . Rewire . | . . . Trap . | . . . Miscellaneous . | . . . Route ------- -11/Scrapyard -10/Materials -9/Materials (discovered 2 exits: [*Mat] / [*Min]) History --------- Turn | Location | Event 7 | -11/Scrapyard | Discovered new exit (range 16) 283 | -11/Scrapyard | Entered Materials 316 | -10/Materials | Build established: Mutant 427 | -10/Materials | Discovered new exit (range 6) 434 | -10/Materials | Entered another Materials area 434 | -9/Materials | Evolved 2 slots: Utility x2 515 | -9/Materials | Discovered new exit (range 7) 540 | -9/Materials | Discovered new exit (range 11) 763 | -9/Materials | Lost 4 parts (1p1n1u1w) 767 | -9/Materials | Core integrity fell below 50% 826 | -9/Materials | Core integrity fell below 20% 859 | -9/Materials | Destroyed by S-10 Pest with Light Assault Rifle Last Messages --------------- 00801_ Destabilizing: System interference. 00801_ Lgt. Cannon temporarily disabled. 00801_ Visual Processing Unit temporarily disabled. 00804_ Slammed into G-34 Mercenary. 00805_ Wheel destroyed. 00806_ Slammed into G-34 Mercenary. 00809_ Slammed into G-47 Trooper. 00811_ Slammed into G-34 Mercenary. 00812_ Slammed into G-47 Trooper. 00813_ Destabilizing: System interference. 00813_ Seismic Detector temporarily disabled. 00814_ Critical hit (Burn: +37). 00814_ Slammed into G-47 Trooper. 00814_ Destabilizing: Core damaged (-8). 00815_ Slammed into G-47 Trooper. 00817_ Arm. Wheel destroyed. 00819_ Slammed into Y-45 Defender. 00819_ Destabilizing: Core damaged (-12). 00820_ Lgt. Cannon destroyed. 00845_ Seismic Detector destroyed. Map ----- +----------------------------------------------------+ | #################???????????????????? | | ##"######????????????????????????????????? | | ## #????????????????????????????????? | | ## #????????????????????????????????# | | ##""" #????????????????????????????????# | | #""" #????????????????????????????????# | | #""" #????????????????????????????????# | | # #?####+#######???????????????????? | | #+#### ########?# ????????????????????? | | # #????????# ?????????????????????? | | "# #????????# ???????????????????????? | | T# ########## #??????????????????????????? | | "# #??????????????????????????? | | # #?????###################### | | """ # ####### | | """ # ########## | | """ # #????????# #??############ | | # #????????# #?????????????# | | /##### #????######+######## #?????????????# | | #???## """ #??# ##?????????????# | | #???# ! "" #??# #??????????????# | | #???## s"" #??# #?????????????## | | ########????# #??# ############### | | #???????????# " "" #??# | | #???????????# "R"" #### ######## | | #???????????# """ @/ #??????# | | #???????????################ ###+####??## | | #??????????????????????????#! !# ??# | | #??????????????????????????#! !# ??## | | #??????????????????????????##!!!!## ??? | | #???????????????????????????####### ????# | | #?????????????????????????????????# ????# | | #?????????????????????????????????# ?????## | | ?????????????????????????????????# ??????# | | ?????????????????????????????????? ???????# | | T ?????????????????????????########? ???????# | | ????????????????????###### ##+######### | | ? ??????????????????? | | ?#??????????????????? < | | ????????????????????? """ | | ???????????????????????###### ## "Y" | | ????????????????????????????# "|"|" ?# " " | | ????????????????????????????#""|"|"??# | | ????????????????????????????######???# | | ????????????????????????????????????## | | ????????????????????????????????????# """ | | ????????????????????????????????????# """ | | ??????????????????????????########??# """ | | ??????????????????????????#!!!![[#??# | | ??????????????????????????#!!!![[???# | +----------------------------------------------------+ Best States ------------- Heat Dissipation 28 Energy Generation 10 Energy Capacity 125 Matter Stores 300 Matter Capacity 300 Sight Range 18 Terrain Scan Density 10 Armor Coverage 450 Evasion (%) 50 Item Schematics ----------------- None Robot Schematics ------------------ None Fabricated ------------ Nothing Alien Tech Used ----------------- None Achievements -------------- None Challenges ------------ None Game ------ Seed AerolevTachyonInterpreter Manual? 0 Play Time 00:14:44 Cumulative 15.4 hours Start 2022.03.20 @ 19:01:09 End 2022.03.20 @ 19:13:09 Sessions 1 Manual Loads 0 Difficulty Rogue Special Mode None Game No. 10 Rogue 10 Adventurer 0 Explorer 0 Win Type - Total 0 Types 0/0/0/0/0/0/0/0/0 Lore% 4 Gallery% 18 Achievement% 18 Wizard Run 0 Options --------- ASCII 0 Keyboard 0 Movement Mouse Keybinds 0 Fullscreen 2 Font 18/TerminusBold Map View 76x50 Tactical HUD 1 Map Filters NONE Filters NONE Steam 1 RUN: eb8884ef-d3fb-4535-ba21-a27724ff2585